[Event "22nd Hoogeveen Open 2018"]
[Site "Hoogeveen"]
[Date "2018.10.22"]
[Round "4"]
[White "Van Foreest, Machteld"]
[Black "Bleeker, Kasper"]
[Result "1-0"]
[ECO "C45"]
[WhiteElo "1934"]
[BlackElo "1891"]
[Annotator "NA"]
[PlyCount "63"]
[EventDate "2018.10.20"]
[EventType "swiss"]
[EventCountry "NED"]
[SourceTitle "playchess.com"]
[Source "ChessBase"]
[SourceQuality "1"]
[TimeControl "40/5400+30:1800+30"]

1. e4 {[%emt 0:00:00]} e5 {[%emt 0:00:00]} 2. Nf3 {[%emt 0:00:00]} Nc6 {[%emt 0:00:00]} 3. d4 {[%emt 0:00:22]} exd4 {[%emt 0:00:00]} 4. Nxd4 {[%emt 0:00:02]} Nf6 {[%emt 0:00:03]} 5. Nxc6 {[%emt 0:00:03]} bxc6 {[%emt 0:00:12]} 6. e5 {[%emt 0:00:02]} Qe7 {[%emt 0:00:08]} 7. Qe2 {[%emt 0:00:03]} Nd5 {[%emt 0:00:05]} 8. c4 {[%emt 0:00:03]} Ba6 {[%emt 0:00:07]} 9. Nd2 {[%emt 0:00:11]} O-O-O {[%emt 0:00:47]} 10. Qe4 {[%emt 0:10:09]} Nb6 {[%emt 0:02:37]} 11. c5 {[%emt 0:12:21]} Bxf1 {[%emt 0:00:10]} 12. cxb6 {[%emt 0:00:14]} Ba6 {[%emt 0:00:14]} 13. bxa7 {[%emt 0:06:03]} Kb7 {[%emt 0:00:06]} 14. b3 {[%emt 0:08:33]} f6 {[%emt 0:03:22]} 15. Bb2 {[%emt 0:02:58]} fxe5 {[%emt 0:04:12]} 16. O-O-O {[%emt 0:05:38]} Qc5+ {[%emt 0:07:15]} 17. Kb1 {[%emt 0:02:43]} Qxa7 {[%emt 0:01:49]} 18. Nf3 {[%emt 0:05:26]} d5 {[%emt 0:15:00]} 19. Qc2 {[%emt 0:06:59]} Bc5 {[%emt 0:13:05]} 20. Nxe5 {[%emt 0:01:52]} Rhe8 {[%emt 0:01:26]} 21. Rc1 {[%emt 0:01:29]} Bxf2 {[%emt 0:35:25]} 22. Nxc6 {[%emt 0:00:42]} Qb6 {[%emt 0:00:36]} 23. Nxd8+ {[%emt 0:00:30]} Rxd8 {[%emt 0:00:01]} 24. Be5 {[%emt 0:03:27]} Rd7 {[%emt 0:06:00]} 25. Rcd1 {[%emt 0:18:44]} g6 {[%emt 0:01:13]} 26. Qc3 {[%emt 0:00:33]} Qe6 {[%emt 0:02:33]} 27. Bd4 {[%emt 0:01:00]} Qe4+ {[%emt 0:01:36]} 28. Ka1 {[%emt 0:00:10]} Bxd4 29. Rxd4 {[%emt 0:01:07]} Qxg2 {[%emt 0:03:18]} 30. Rc1 {[%emt 0:00:22]} Bb5 {[%emt 0:02:24]} 31. Rb4 {[%emt 0:00:57]} Ka6 {[%emt 0:01:00]} 32. Rxb5 {[%emt 0:00:13]} 1-0

[Event "22nd Hoogeveen Open 2018"]
[Site "Hoogeveen"]
[Date "2018.10.22"]
[Round "4"]
[White "Emans, Job"]
[Black "Pham, Khoi"]
[Result "0-1"]
[ECO "E68"]
[WhiteElo "1927"]
[BlackElo "2153"]
[Annotator "NA"]
[PlyCount "74"]
[EventDate "2018.10.20"]
[EventType "swiss"]
[EventCountry "NED"]
[SourceTitle "playchess.com"]
[Source "ChessBase"]
[SourceQuality "1"]
[TimeControl "40/5400+30:1800+30"]

1. Nf3 {[%emt 0:00:00]} d6 {[%emt 0:00:00]} 2. g3 {[%emt 0:00:00]} g6 {[%emt 0:00:00]} 3. Bg2 {[%emt 0:00:11]} Bg7 {[%emt 0:00:10]} 4. d4 {[%emt 0:00:28]} Nf6 {[%emt 0:00:06]} 5. O-O {[%emt 0:00:22]} O-O {[%emt 0:00:07]} 6. c4 {[%emt 0:01:24]} Nbd7 {[%emt 0:00:09]} 7. Nc3 {[%emt 0:00:25]} e5 {[%emt 0:00:06]} 8. e4 {[%emt 0:02:28]} c6 {[%emt 0:00:46]} 9. d5 {[%emt 0:04:09]} cxd5 {[%emt 0:03:21]} 10. cxd5 {[%emt 0:00:12]} b6 {[%emt 0:07:07]} 11. Re1 {[%emt 0:05:12]} a5 {[%emt 0:01:26]} 12. Bf1 {[%emt 0:06:59]} Nc5 {[%emt 0:01:10]} 13. Nd2 {[%emt 0:01:46]} Ne8 {[%emt 0:02:33]} 14. Nc4 {[%emt 0:13:25]} f5 {[%emt 0:01:37]} 15. Be3 {[%emt 0:01:58]} f4 {[%emt 0:17:29]} 16. Bxc5 {[%emt 0:02:43]} bxc5 {[%emt 0:00:12]} 17. Nb5 {[%emt 0:11:28]} h5 {[%emt 0:03:25]} 18. Be2 {[%emt 0:06:00]} Qf6 {[%emt 0:04:44]} 19. f3 {[%emt 0:07:34]} Bh6 {[%emt 0:05:39]} 20. Nb6 {[%emt 0:04:31]} fxg3 {[%emt 0:04:11]} 21. Nxa8 {[%emt 0:09:00]} gxh2+ {[%emt 0:00:24]} 22. Kh1 {[%emt 0:00:04]} Qh4 {[%emt 0:06:38]} 23. Bf1 {[%emt 0:02:08]} Qg3 {[%emt 0:03:15]} 24. Bg2 {[%emt 0:00:59]} h4 {[%emt 0:00:07]} 25. Qe2 {[%emt 0:04:45]} h3 {[%emt 0:00:54]} 26. Nb6 {[%emt 0:00:34]} Bg4 {[%emt 0:02:31]} 27. Rf1 {[%emt 0:03:36]} hxg2+ {[%emt 0:00:48]} 28. Qxg2 {[%emt 0:00:04]} Bxf3 {[%emt 0:00:08]} 29. Rxf3 {[%emt 0:00:06]} Qxf3 {[%emt 0:00:37]} 30. Nc4 {[%emt 0:02:00]} Qf6 {[%emt 0:01:58]} 31. Nxa5 {[%emt 0:04:17]} Bf4 {[%emt 0:01:06]} 32. Nc6 {[%emt 0:00:59]} Ng7 {[%emt 0:03:16]} 33. Qg4 {[%emt 0:03:42]} Kh7 {[%emt 0:06:46]} 34. Rf1 {[%emt 0:01:49]} Nh5 {[%emt 0:01:06]} 35. Rf3 {[%emt 0:00:07]} Ng3+ {[%emt 0:07:30]} 36. Rxg3 {[%emt 0:00:04]} Bxg3 {[%emt 0:00:12]} 37. Qxg3 {[%emt 0:00:05]} Qf1+ {[%emt 0:00:10]} 0-1

[Event "22nd Hoogeveen Open 2018"]
[Site "Hoogeveen"]
[Date "2018.10.22"]
[Round "4"]
[White "De Vries, Emma"]
[Black "Kutchoukov, Daniel"]
[Result "0-1"]
[ECO "B12"]
[WhiteElo "1905"]
[BlackElo "1882"]
[Annotator "NA"]
[PlyCount "58"]
[EventDate "2018.10.20"]
[EventType "swiss"]
[EventCountry "NED"]
[SourceTitle "playchess.com"]
[Source "ChessBase"]
[SourceQuality "1"]
[TimeControl "40/5400+30:1800+30"]

1. e4 {[%emt 0:00:00]} c6 {[%emt 0:00:37]} 2. d4 {[%emt 0:00:00]} d5 {[%emt 0:00:04]} 3. e5 {[%emt 0:00:00]} Bf5 {[%emt 0:00:04]} 4. Nf3 {[%emt 0:00:00]} e6 {[%emt 0:00:09]} 5. Be2 {[%emt 0:00:00]} c5 {[%emt 0:00:05]} 6. c4 {[%emt 0:05:59]} dxc4 {[%emt 0:13:58]} 7. Bxc4 {[%emt 0:16:28]} Nc6 {[%emt 0:04:30]} 8. d5 {[%emt 0:05:59]} exd5 {[%emt 0:03:10]} 9. Bxd5 {[%emt 0:07:44]} Nge7 {[%emt 0:02:24]} 10. Bxc6+ {[%emt 0:17:07]} Nxc6 {[%emt 0:02:27]} 11. Qd4 {[%emt 0:13:57]} Qd6 12. Qxd6 {[%emt 0:00:30]} Rb8 {[%emt 0:01:37]} 13. Qd8+ Rxd8 {[%emt 0:01:00]} 14. O-O {[%emt 0:00:47]} Be7 {[%emt 0:19:44]} 15. Re1 {[%emt 0:08:05]} Nb4 {[%emt 0:16:54]} 16. Na3 {[%emt 0:01:00]} Nd3 {[%emt 0:10:10]} 17. Rd1 {[%emt 0:00:17]} O-O {[%emt 0:00:17]} 18. Nc4 {[%emt 0:01:21]} Nxe5 {[%emt 0:01:06]} 19. Rxd8 {[%emt 0:02:35]} Rxd8 {[%emt 0:01:57]} 20. Ne3 {[%emt 0:02:03]} Nxf3+ {[%emt 0:08:32]} 21. gxf3 {[%emt 0:00:04]} Bh3 {[%emt 0:02:38]} 22. b3 {[%emt 0:02:38]} Bf6 {[%emt 0:04:09]} 23. Rb1 {[%emt 0:00:05]} b6 {[%emt 0:04:33]} 24. b4 {[%emt 0:07:03]} c4 {[%emt 0:00:28]} 25. a4 {[%emt 0:00:50]} c3 {[%emt 0:01:23]} 26. Ba3 {[%emt 0:00:22]} Rd2 {[%emt 0:00:31]} 27. b5 {[%emt 0:03:30]} Bh4 {[%emt 0:00:29]} 28. Ng4 {[%emt 0:02:44]} c2 {[%emt 0:00:18]} 29. Re1 {[%emt 0:00:16]} Rd1 {[%emt 0:00:07]} 0-1

[Event "22nd Hoogeveen Open 2018"]
[Site "Hoogeveen"]
[Date "2018.10.22"]
[Round "4"]
[White "Oord, Raymon"]
[Black "Mellema, Andries"]
[Result "1/2-1/2"]
[ECO "A01"]
[WhiteElo "1900"]
[BlackElo "2140"]
[Annotator "NA"]
[PlyCount "95"]
[EventDate "2018.10.20"]
[EventType "swiss"]
[EventCountry "NED"]
[SourceTitle "playchess.com"]
[Source "ChessBase"]
[SourceQuality "1"]
[TimeControl "40/5400+30:1800+30"]

1. b3 {[%emt 0:00:00]} e5 {[%emt 0:05:13]} 2. Bb2 {[%emt 0:00:03]} Nc6 {[%emt 0:00:06]} 3. e3 {[%emt 0:00:15]} Nf6 {[%emt 0:00:57]} 4. d4 {[%emt 0:01:00]} exd4 {[%emt 0:05:00]} 5. exd4 {[%emt 0:00:32]} d5 {[%emt 0:00:57]} 6. Nf3 {[%emt 0:01:44]} Bg4 {[%emt 0:05:18]} 7. Be2 {[%emt 0:03:07]} Bb4+ {[%emt 0:05:49]} 8. c3 {[%emt 0:01:25]} Bd6 {[%emt 0:00:13]} 9. Nbd2 {[%emt 0:02:53]} O-O {[%emt 0:03:32]} 10. O-O {[%emt 0:02:16]} Re8 {[%emt 0:05:46]} 11. h3 {[%emt 0:01:16]} Bh5 {[%emt 0:05:25]} 12. Re1 {[%emt 0:04:39]} Ne4 {[%emt 0:10:50]} 13. Nxe4 {[%emt 0:10:41]} dxe4 {[%emt 0:14:44]} 14. Nd2 {[%emt 0:05:48]} Bg6 {[%emt 0:01:27]} 15. Nc4 {[%emt 0:01:24]} Bf4 {[%emt 0:04:43]} 16. Bc1 {[%emt 0:02:24]} Bxc1 {[%emt 0:02:05]} 17. Rxc1 {[%emt 0:02:37]} Qh4 {[%emt 0:01:28]} 18. Bf1 {[%emt 0:04:28]} f5 {[%emt 0:02:43]} 19. b4 {[%emt 0:03:31]} a6 {[%emt 0:02:58]} 20. a4 {[%emt 0:01:11]} b5 {[%emt 0:11:34]} 21. axb5 {[%emt 0:05:16]} axb5 {[%emt 0:00:02]} 22. Ne3 {[%emt 0:02:44]} Rab8 {[%emt 0:00:03]} 23. Nd5 {[%emt 0:07:32]} Qd8 {[%emt 0:00:26]} 24. Ne3 {[%emt 0:08:20]} f4 {[%emt 0:02:10]} 25. Ng4 {[%emt 0:12:32]} h5 {[%emt 0:01:08]} 26. Nh2 {[%emt 0:02:38]} Qd6 {[%emt 0:00:58]} 27. Ra1 {[%emt 0:02:32]} Ne7 {[%emt 0:01:19]} 28. c4 {[%emt 0:04:38]} bxc4 {[%emt 0:00:33]} 29. Bxc4+ {[%emt 0:00:37]} Kh8 {[%emt 0:00:35]} 30. Ra6 {[%emt 0:04:17]} Rb6 {[%emt 0:01:16]} 31. Rxb6 {[%emt 0:00:42]} cxb6 {[%emt 0:01:26]} 32. Rxe4 {[%emt 0:01:56]} Rd8 {[%emt 0:01:25]} 33. Re6 {[%emt 0:00:22]} Qxd4 {[%emt 0:00:20]} 34. Qxd4 {[%emt 0:00:46]} Rxd4 {[%emt 0:00:06]} 35. Bf1 {[%emt 0:00:15]} Rd7 {[%emt 0:01:33]} 36. Rxb6 {[%emt 0:00:23]} Be4 {[%emt 0:00:57]} 37. Rb8+ {[%emt 0:00:33]} Kh7 {[%emt 0:00:10]} 38. Rf8 {[%emt 0:00:27]} Ng6 {[%emt 0:01:13]} 39. Re8 {[%emt 0:00:13]} Rd4 {[%emt 0:01:11]} 40. b5 {[%emt 0:00:40]} Rb4 {[%emt 0:01:03]} 41. Nf3 {[%emt 0:10:51]} Bxf3 {[%emt 0:02:55]} 42. gxf3 {[%emt 0:00:03]} Rb1 {[%emt 0:00:52]} 43. Re4 {[%emt 0:04:55]} Kh6 {[%emt 0:02:51]} 44. Rd4 {[%emt 0:02:28]} Kg5 {[%emt 0:16:04]} 45. Rd5+ {[%emt 0:01:29]} Kh6 {[%emt 0:00:08]} 46. Rd6 {[%emt 0:08:46]} Kg5 {[%emt 0:01:53]} 47. Rd5+ {[%emt 0:01:06]} Kh6 {[%emt 0:00:44]} 48. Rd6 {[%emt 0:02:06]} 1/2-1/2

[Event "22nd Hoogeveen Open 2018"]
[Site "Hoogeveen"]
[Date "2018.10.23"]
[Round "5"]
[White "Karthikeyan, P.."]
[Black "De Boer, Eelke"]
[Result "1-0"]
[ECO "E92"]
[WhiteElo "2443"]
[BlackElo "2285"]
[Annotator "ChessBase"]
[PlyCount "68"]
[EventDate "2018.10.20"]
[EventType "swiss"]
[EventCountry "NED"]
[SourceTitle "playchess.com"]
[Source "ChessBase"]
[SourceQuality "1"]
[TimeControl "40/5400+30:1800+30"]

1. d4 {[%emt 0:00:55]} Nf6 {[%emt 0:00:00]} 2. c4 {[%emt 0:00:21]} g6 {[%emt 0:00:00]} 3. Nc3 {[%emt 0:00:37]} Bg7 {[%emt 0:00:00]} 4. e4 {[%emt 0:00:23]} d6 {[%emt 0:00:04]} 5. Nf3 {[%emt 0:00:34]} O-O {[%emt 0:00:12]} 6. Be2 {[%emt 0:00:23]} e5 {[%emt 0:00:09]} 7. Be3 {[%emt 0:00:32]} Ng4 {[%emt 0:00:09]} 8. Bg5 {[%emt 0:00:14]} f6 {[%emt 0:00:08]} 9. Bh4 {[%emt 0:00:13]} g5 {[%emt 0:00:12]} 10. Bg3 {[%emt 0:00:10]} Nh6 {[%emt 0:00:07]} 11. h3 {[%emt 0:00:22]} Nc6 {[%emt 0:10:48]} 12. dxe5 {[%emt 0:00:15]} dxe5 {[%emt 0:01:31]} 13. Qd5+ {[%emt 0:00:10]} Nf7 {[%emt 0:03:59]} 14. O-O {[%emt 0:05:09]} Qe7 {[%emt 0:10:35]} 15. Qd2 {[%emt 0:02:52]} Ncd8 {[%emt 0:20:02]} 16. Nd5 {[%emt 0:01:18]} Qd7 {[%emt 0:00:39]} 17. Rfd1 {[%emt 0:02:07]} Ne6 {[%emt 0:14:33]} 18. Nxf6+ {[%emt 0:04:21]} Bxf6 {[%emt 0:00:09]} 19. Qxd7 {[%emt 0:00:04]} Bxd7 {[%emt 0:00:30]} 20. Rxd7 {[%emt 0:00:03]} Nd6 {[%emt 0:07:29]} 21. Bxe5 {[%emt 0:04:52]} Nxe4 {[%emt 0:02:40]} 22. Bxf6 {[%emt 0:13:27]} Rxf6 {[%emt 0:03:07]} 23. Re1 {[%emt 0:03:09]} h6 {[%emt 0:05:39]} 24. b4 {[%emt 0:08:02]} Nc3 {[%emt 0:09:07]} 25. c5 {[%emt 0:02:09]} Nxe2+ {[%emt 0:01:58]} 26. Rxe2 {[%emt 0:00:02]} Kf8 {[%emt 0:02:12]} 27. Ne5 {[%emt 0:02:26]} Re8 {[%emt 0:06:42]} 28. Ng4 {[%emt 0:02:34]} Rg6 {[%emt 0:00:38]} 29. Rh7 {[%emt 0:01:17]} Re7 {[%emt 0:00:30]} 30. Rh8+ {[%emt 0:02:14]} Kg7 {[%emt 0:00:11]} 31. Ra8 {[%emt 0:00:12]} a6 {[%emt 0:00:26]} 32. c6 {[%emt 0:01:08]} bxc6 {[%emt 0:01:01]} 33. Rxa6 {[%emt 0:00:06]} h5 {[%emt 0:00:25]} 34. Ne3 {[%emt 0:00:36]} Rf6 {[%emt 0:00:00]} 1-0

[Event "22nd Hoogeveen Open 2018"]
[Site "Hoogeveen"]
[Date "2018.10.23"]
[Round "5"]
[White "Shyaamnikhil P"]
[Black "Sparenberg, Erik"]
[Result "1-0"]
[ECO "A49"]
[WhiteElo "2429"]
[BlackElo "2224"]
[Annotator "NA"]
[PlyCount "107"]
[EventDate "2018.10.20"]
[EventType "swiss"]
[EventCountry "NED"]
[SourceTitle "playchess.com"]
[Source "ChessBase"]
[SourceQuality "1"]
[TimeControl "40/5400+30:1800+30"]

1. Nf3 {[%emt 0:00:00]} Nf6 {[%emt 0:00:00]} 2. g3 {[%emt 0:01:06]} g6 {[%emt 0:00:00]} 3. Bg2 {[%emt 0:00:04]} Bg7 {[%emt 0:00:00]} 4. O-O {[%emt 0:00:30]} O-O {[%emt 0:00:00]} 5. d4 {[%emt 0:00:10]} d6 {[%emt 0:00:07]} 6. a4 {[%emt 0:01:05]} c5 {[%emt 0:02:14] LiveBook: 37 Games} 7. c3 {[%emt 0:05:59]} Nbd7 {[%emt 0:02:19]} 8. a5 {[%emt 0:05:04] A49: 1 d4 Nf6 2 Nf3 g6 3 g3: Anti-King's Indian systems} Rb8 {[%emt 0:09:26]} 9. c4 $146 {[%emt 0:11:31]} ({Predecessor:} 9. Nbd2 b5 10. Re1 b4 11. e4 bxc3 12. bxc3 Ba6 13. Qa4 Qc7 14. Qa2 e6 15. h3 Rfc8 {0-1 (50) Rahul,K (2178)-Sagit,R (2427) Stockholm 2017}) 9... b6 {[%emt 0:04:09]} 10. axb6 {[%emt 0:11:43]} Qxb6 {[%emt 0:00:41]} 11. d5 {[%emt 0:04:39]} Rb7 {[%emt 0:20:10]} 12. Nc3 {[%emt 0:01:32]} h6 {[%emt 0:08:25]} 13. h3 {[%emt 0:03:07]} Kh7 {[%emt 0:07:11]} 14. Ra3 {[%emt 0:02:06]} Ng8 {[%emt 0:01:23]} 15. Nd2 {[%emt 0:04:18]} f5 {[%emt 0:05:14]} 16. e3 {[%emt 0:08:38]} Ndf6 {[%emt 0:04:54]} 17. Nb3 {[%emt 0:04:06]} Bd7 {[%emt 0:04:46]} 18. Qc2 {[%emt 0:01:35]} Rbb8 {[%emt 0:05:16]} 19. Rd1 {[%emt 0:03:13]} h5 {[%emt 0:05:20]} 20. Ne2 {[%emt 0:07:53]} Nh6 {[%emt 0:02:18]} 21. Bd2 {[%emt 0:01:12]} Ne4 {[%emt 0:07:19]} 22. Ba5 {[%emt 0:00:45]} Qb7 {[%emt 0:00:02]} 23. f3 {[%emt 0:03:43]} Nf6 {[%emt 0:00:01]} 24. Bc3 {[%emt 0:01:38]} Nf7 {[%emt 0:02:09]} 25. Rda1 {[%emt 0:00:27]} e5 {[%emt 0:02:50]} 26. dxe6 {[%emt 0:00:37]} Bxe6 {[%emt 0:00:02]} 27. Nd2 {[%emt 0:00:32]} Ra8 {[%emt 0:01:40] [#]} 28. f4 $1 {[%emt 0:04:31]} d5 {[%emt 0:00:07]} 29. Ra6 {[%emt 0:05:31]} Qe7 {[%emt 0:00:33]} 30. Bxf6 {[%emt 0:01:00]} Bxf6 {[%emt 0:00:17]} 31. cxd5 {[%emt 0:00:29]} Bc8 {[%emt 0:01:29]} 32. R6a3 {[%emt 0:01:49]} Nd6 {[%emt 0:00:47]} 33. e4 {[%emt 0:01:54]} fxe4 {[%emt 0:00:37]} 34. Nxe4 {[%emt 0:00:06]} Bf5 {[%emt 0:02:08]} 35. Nxf6+ {[%emt 0:00:31]} Rxf6 {[%emt 0:00:33]} 36. Qc3 {[%emt 0:02:32]} Rf7 {[%emt 0:01:39]} 37. Qxc5 {[%emt 0:01:42]} Qxe2 {[%emt 0:01:32]} 38. Qxd6 {[%emt 0:00:06]} Be4 {[%emt 0:00:39]} 39. Bxe4 {[%emt 0:00:11]} Qxe4 {[%emt 0:00:07]} 40. Qe5 {[%emt 0:00:24]} Qb4 {[%emt 0:00:42]} 41. Ra4 {[%emt 0:31:58]} Qb6+ {[%emt 0:02:25]} 42. Qd4 {[%emt 0:00:00]} Qb3 {[%emt 0:02:32]} 43. R4a3 {[%emt 0:00:00]} Qc2 {[%emt 0:00:17]} 44. Rxa7 {[%emt 0:00:00]} Raxa7 {[%emt 0:01:05]} 45. Rxa7 {[%emt 0:00:00]} Qc1+ {[%emt 0:00:30]} 46. Kg2 {[%emt 0:00:00]} Qc2+ {[%emt 0:00:11]} 47. Kf3 {[%emt 0:00:00]} Qb3+ {[%emt 0:00:16]} 48. Ke4 {[%emt 0:00:00]} Qc2+ {[%emt 0:00:29]} 49. Ke5 {[%emt 0:00:00]} Qf5+ {[%emt 0:06:47]} 50. Kd6 {[%emt 0:00:00]} Rxa7 {[%emt 0:02:14]} 51. Qxa7+ {[%emt 0:00:00]} Kg8 {[%emt 0:00:08]} 52. Qb8+ {[%emt 0:00:00]} Kg7 {[%emt 0:03:08]} 53. Qc7+ {[%emt 0:00:00]} Kf6 {[%emt 0:00:47]} 54. Qe7# {[%emt 0:00:00]} 1-0

[Event "22nd Hoogeveen Open 2018"]
[Site "Hoogeveen"]
[Date "2018.10.23"]
[Round "5"]
[White "Warmerdam, Max"]
[Black "Wedda, Dries"]
[Result "1-0"]
[ECO "B51"]
[WhiteElo "2417"]
[BlackElo "2216"]
[Annotator "ChessBase"]
[PlyCount "81"]
[EventDate "2018.10.20"]
[EventType "swiss"]
[EventCountry "NED"]
[SourceTitle "playchess.com"]
[Source "ChessBase"]
[SourceQuality "1"]
[TimeControl "40/5400+30:1800+30"]

1. e4 {[%emt 0:00:00]} c5 {[%emt 0:00:00]} 2. Nf3 {[%emt 0:00:00]} d6 {[%emt 0:00:00]} 3. Bb5+ {[%emt 0:00:00]} Nd7 {[%emt 0:00:00]} 4. d4 {[%emt 0:00:00]} cxd4 {[%emt 0:00:00]} 5. Qxd4 {[%emt 0:00:00]} a6 {[%emt 0:00:00]} 6. Bxd7+ {[%emt 0:00:00]} Bxd7 {[%emt 0:00:00]} 7. Nc3 {[%emt 0:00:00]} e5 {[%emt 0:15:01]} 8. Qd3 {[%emt 0:00:10]} h6 {[%emt 0:05:20]} 9. Nd2 {[%emt 0:00:06]} Rc8 {[%emt 0:08:13]} 10. Nc4 {[%emt 0:00:14]} Be6 {[%emt 0:02:11]} 11. Ne3 {[%emt 0:00:12]} Nf6 {[%emt 0:01:08]} 12. O-O {[%emt 0:00:38]} Be7 {[%emt 0:02:26]} 13. a4 {[%emt 0:02:33]} O-O {[%emt 0:02:43]} 14. Rd1 {[%emt 0:00:21]} Qc7 {[%emt 0:15:28]} 15. a5 {[%emt 0:00:18]} Rfd8 {[%emt 0:02:46]} 16. Qe2 {[%emt 0:01:31]} Qc6 {[%emt 0:10:41]} 17. Qf3 {[%emt 0:00:23]} b5 {[%emt 0:09:52]} 18. axb6 {[%emt 0:00:30]} Qxb6 {[%emt 0:00:09]} 19. Bd2 {[%emt 0:00:07]} Qb7 {[%emt 0:02:35]} 20. Be1 {[%emt 0:04:30]} g6 {[%emt 0:05:37]} 21. b3 {[%emt 0:05:24]} Kg7 {[%emt 0:00:58]} 22. Ra2 {[%emt 0:01:55]} Rc5 {[%emt 0:05:55]} 23. Ncd5 {[%emt 0:07:45]} Bxd5 {[%emt 0:05:05]} 24. exd5 {[%emt 0:03:29]} Rd7 {[%emt 0:01:18]} 25. c4 {[%emt 0:02:44]} Nh7 {[%emt 0:01:15]} 26. Rda1 {[%emt 0:03:40]} f5 {[%emt 0:01:30]} 27. Rxa6 {[%emt 0:00:36]} Ng5 {[%emt 0:00:35]} 28. Qd1 {[%emt 0:01:06]} f4 {[%emt 0:00:09]} 29. Nf1 {[%emt 0:00:34]} Rc8 {[%emt 0:00:34]} 30. Nd2 {[%emt 0:02:09]} Bd8 {[%emt 0:00:50]} 31. R1a3 {[%emt 0:05:01]} Bb6 {[%emt 0:00:23]} 32. h4 {[%emt 0:00:28]} Nh7 {[%emt 0:00:15]} 33. Ne4 {[%emt 0:01:15]} Nf6 {[%emt 0:00:12]} 34. Nxf6 {[%emt 0:00:40]} Kxf6 {[%emt 0:00:02]} 35. Qg4 {[%emt 0:00:16]} Bc5 {[%emt 0:00:38]} 36. b4 {[%emt 0:01:02]} Bd4 {[%emt 0:00:04]} 37. Qe6+ {[%emt 0:01:48]} Kg7 {[%emt 0:00:01]} 38. c5 {[%emt 0:01:32]} Bxc5 {[%emt 0:01:03]} 39. bxc5 {[%emt 0:00:11]} Rxc5 {[%emt 0:00:04]} 40. Rb6 {[%emt 0:03:53]} Qc7 {[%emt 0:00:28]} 41. Ra8 {[%emt 0:30:25]} 1-0

[Event "22nd Hoogeveen Open 2018"]
[Site "Hoogeveen"]
[Date "2018.10.23"]
[Round "5"]
[White "Zwirs, Nico"]
[Black "Giacomini, Hector"]
[Result "1-0"]
[ECO "D42"]
[WhiteElo "2410"]
[BlackElo "2178"]
[Annotator "NA"]
[PlyCount "99"]
[EventDate "2018.10.20"]
[EventType "swiss"]
[EventCountry "NED"]
[SourceTitle "playchess.com"]
[Source "ChessBase"]
[SourceQuality "1"]
[TimeControl "40/5400+30:1800+30"]

1. e4 {[%emt 0:00:00]} c6 {[%emt 0:00:00]} 2. d4 {[%emt 0:00:00]} d5 {[%emt 0:00:00]} 3. exd5 {[%emt 0:00:00]} cxd5 {[%emt 0:00:00]} 4. c4 {[%emt 0:00:01]} Nf6 {[%emt 0:00:00]} 5. Nc3 {[%emt 0:00:05]} e6 {[%emt 0:00:00]} 6. Nf3 {[%emt 0:00:17]} Be7 {[%emt 0:00:00] LiveBook: 1735 Games} 7. cxd5 {[%emt 0:00:42]} Nxd5 {[%emt 0:00:00]} 8. Bd3 {[%emt 0:00:08]} Nc6 {[%emt 0:00:05]} 9. O-O {[%emt 0:00:12]} O-O {[%emt 0:00:03]} 10. Re1 {[%emt 0:00:12]} Bf6 {[%emt 0:00:09]} 11. Be4 {[%emt 0:00:22]} Nce7 {[%emt 0:00:10]} 12. Qd3 {[%emt 0:01:07]} h6 {[%emt 0:00:05]} 13. Ne5 {[%emt 0:00:24]} Bd7 {[%emt 0:00:29]} 14. Qg3 {[%emt 0:00:43]} Bc6 {[%emt 0:00:10]} 15. Nxc6 {[%emt 0:00:16]} bxc6 {[%emt 0:00:11]} 16. Bxh6 {[%emt 0:00:14]} Qb6 {[%emt 0:01:32]} 17. Bg5 {[%emt 0:19:58]} Bxg5 {[%emt 0:04:30]} 18. Qxg5 {[%emt 0:00:19]} Qxb2 {[%emt 0:02:46]} 19. Ne2 {[%emt 0:05:18]} Nf6 {[%emt 0:05:01]} 20. Bf3 {[%emt 0:01:23]} Rab8 {[%emt 0:02:49]} 21. Qc5 {[%emt 0:03:13]} Rb7 {[%emt 0:09:42]} 22. h4 {[%emt 0:11:16]} Rfb8 {[%emt 0:08:09]} 23. a4 {[%emt 0:08:55]} Nfd5 {[%emt 0:06:16]} 24. g3 {[%emt 0:11:27]} Qb4 {[%emt 0:04:03]} 25. Qc1 {[%emt 0:00:42]} Nf5 {[%emt 0:13:37]} 26. Qxc6 {[%emt 0:05:18]} Rc7 {[%emt 0:00:31]} ({Much weaker is} 26... Nxd4 $6 27. Nxd4 Qxd4 28. Rad1 $16) 27. Qa6 {[%emt 0:01:09]} Nxd4 $11 {[%emt 0:00:38]} 28. Nxd4 {[%emt 0:13:34]} Qxd4 {[%emt 0:00:10]} 29. Red1 {[%emt 0:00:49]} Qc5 {[%emt 0:10:15]} 30. Bxd5 {[%emt 0:12:33]} exd5 {[%emt 0:00:05]} 31. Qd3 {[%emt 0:00:15]} Rb2 {[%emt 0:00:50]} 32. Qf5 {[%emt 0:01:29]} g6 {[%emt 0:04:07]} 33. Qf4 {[%emt 0:00:03]} Rc6 {[%emt 0:13:40]} 34. Rac1 {[%emt 0:00:07]} Qd6 {[%emt 0:00:50]} 35. Rxc6 {[%emt 0:00:04]} Qxc6 {[%emt 0:00:11]} 36. h5 {[%emt 0:02:01]} gxh5 {[%emt 0:02:07]} 37. Qg5+ {[%emt 0:00:02]} Qg6 {[%emt 0:00:25]} 38. Rxd5 {[%emt 0:01:11]} Rb6 {[%emt 0:11:12]} 39. Qh4 {[%emt 0:03:07]} Qb1+ {[%emt 0:01:17]} 40. Kh2 {[%emt 0:00:03]} Rg6 {[%emt 0:03:04]} 41. Qd8+ {[%emt 0:02:44]} Kg7 {[%emt 0:09:36]} 42. Rxh5 {[%emt 0:00:21]} Rh6 {[%emt 0:03:13]} 43. Qg5+ {[%emt 0:05:42]} Qg6 {[%emt 0:01:26]} 44. Qxh6+ {[%emt 0:00:07]} Qxh6 {[%emt 0:00:05]} 45. Rxh6 {[%emt 0:00:05]} Kxh6 {[%emt 0:00:04]} 46. a5 {[%emt 0:00:09]} a6 {[%emt 0:00:04]} 47. g4 {[%emt 0:00:12]} f5 {[%emt 0:00:22]} 48. Kg3 {[%emt 0:00:12]} fxg4 {[%emt 0:00:16]} 49. Kxg4 {[%emt 0:00:07]} Kg6 {[%emt 0:00:13]} 50. Kf4 {[%emt 0:00:04]} 1-0